bitfinex-derivatives/quotes_ETHF0:USTF0_20251117
["timestamp","ask_amount","ask_price","bid_price","bid_amount"]
[1763394659445,3.2078,3119.3,3118.5,4.53230318]
[1763394659646,3.21143111,3119.7,3118.6,3.2078]
[1763394659832,3.2078,3119.4,3118.6,3.2078]
[1763394660339,0.00363111,3119.7,3118.9,0.51987]
[1763394660543,3.2078,3119.1,3118.6,3.2078]
[1763394660745,3.2078,3119.3,3118.6,3.2078]
[1763394660941,3.21143111,3119.7,3118.6,3.2078]
[1763394661138,3.2078,3119.2,3118.6,3.2078]
[1763394661444,3.2078,3119.2,3118.5,0.00480507]
[1763394661644,3.2078,3119.1,3118.5,0.00480507]
[1763394662146,3.2078,3118.7,3118.5,0.00480507]
[1763394662850,3.2078,3118.6,3118.5,0.00480507]
[1763394663636,3.2078,3119.0,3118.5,0.46840507]
[1763394663840,3.2078,3119.0,3118.8,0.51988]
[1763394664047,3.2078,3119.0,3118.5,0.46840507]
[1763394664245,3.2078,3119.0,3118.5,0.00480507]
[1763394664840,3.2078,3118.6,3118.5,0.00480507]
[1763394665139,0.4709,3118.5,3118.4,0.00136172]
[1763394665336,0.4709,3118.5,3117.6,4.06704852]
[1763394665546,0.4709,3118.5,3116.2,56.33363655]
[1763394665547,3.2078,3117.8,3117.0,0.85924852]
[1763394665735,0.4709,3118.5,3117.0,0.85924852]
[1763394665937,3.2078,3117.5,3116.9,0.85924852]
[1763394666244,3.2078,3117.1,3116.9,0.00480507]
[1763394666445,0.00410102,3117.1,3116.9,0.00780276]
[1763394667048,3.2078,3117.0,3116.9,0.00780276]
[1763394667239,3.21190102,3117.1,3116.9,0.00780276]
[1763394667441,0.00410102,3117.1,3116.9,0.00780276]
[1763394667843,0.00480507,3117.5,3117.1,0.52017]
[1763394668044,0.00480507,3117.5,3117.3,0.52014]
[1763394668342,0.00480507,3117.5,3116.9,3.21560276]
[1763394668343,3.2078,3118.1,3117.4,3.2078]
[1763394668543,3.7071,3117.6,3116.9,0.72821209]
[1763394668846,3.2078,3117.0,3115.6,1.13872679]
[1763394669150,3.2078,3116.1,3115.2,1.13872679]
[1763394669346,3.2078,3116.1,3114.9,3.2078]
[1763394669543,3.2078,3116.4,3114.9,3.6714]
[1763394669747,3.2078,3115.9,3115.3,0.00481325]
[1763394670146,3.2078,3115.4,3114.5,3.2078]
[1763394670351,3.2078,3115.8,3114.5,3.2078]
[1763394670650,3.2078,3114.8,3113.8,0.52072]
[1763394670847,3.2078,3114.9,3114.1,3.2078]
[1763394671244,3.2078,3114.9,3114.2,0.00481325]
[1763394671549,3.2078,3114.4,3114.2,0.00481325]
[1763394671940,3.2078,3115.4,3114.3,3.2078]
[1763394672149,3.2078,3115.4,3114.4,3.2078]
[1763394672346,0.50411325,3116.0,3114.4,3.2078]
[1763394672347,3.2078,3115.9,3114.4,3.2078]
[1763394672553,3.2078,3115.9,3115.7,0.5204]
[1763394672753,0.00481325,3116.0,3115.9,0.52038]
[1763394673049,3.2078,3117.8,3116.5,0.52026]
[1763394673244,3.2078,3116.7,3116.1,3.2078]
[1763394673645,3.2078,3116.7,3115.9,0.52037]
[1763394673848,3.01624908,3118.0,3115.0,0.4636]
[1763394673849,0.00481325,3116.6,3116.3,3.2078]
[1763394674046,0.00804392,3116.6,3116.3,0.00312476]
[1763394675055,0.00804392,3116.6,3116.4,3.72809]
[1763394675256,0.00804392,3116.6,3116.3,0.00312476]
[1763394675656,0.00804392,3116.6,3116.4,3.2078]
[1763394675853,0.00804392,3116.6,3116.4,3.72809]
[1763394676047,3.2078,3117.3,3117.1,0.52016]
[1763394676353,3.2078,3117.8,3117.2,0.52015]
[1763394676557,3.2078,3117.8,3117.5,0.52011]
[1763394676748,0.4993,3119.0,3117.9,0.52004]
[1763394676749,3.2078,3118.4,3117.9,0.52004]
[1763394676944,3.21193844,3118.4,3117.7,3.2078]
[1763394677151,3.21193844,3118.4,3117.0,0.4636]
[1763394677152,3.21193844,3118.4,3117.8,0.00481325]
[1763394677552,0.00413844,3118.4,3118.2,0.51998]
[1763394677742,3.2078,3119.5,3118.5,0.51994]
[1763394677946,3.2078,3119.5,3118.6,3.2078]
[1763394678151,3.2078,3119.5,3118.9,0.51987]
[1763394678349,3.2078,3119.5,3118.6,3.2078]
[1763394678550,3.2078,3119.9,3119.1,3.2078]
[1763394678747,0.00481325,3119.8,3119.2,0.00481325]
[1763394678948,3.2078,3119.4,3119.2,0.00481325]
[1763394679146,3.21261325,3119.8,3119.2,0.00481325]
[1763394679455,3.21261325,3119.8,3119.5,0.51977]
[1763394679653,0.00481325,3119.8,3119.6,0.51976]
[1763394679845,0.00481325,3119.8,3119.6,0.77034432]
[1763394680148,3.2078,3120.2,3119.5,3.2078]
[1763394680350,3.2078,3120.2,3119.2,0.00481325]
[1763394680550,3.2078,3119.8,3119.2,0.00481325]
[1763394680750,3.2078,3119.4,3119.2,0.00481325]
[1763394681055,0.00256557,3119.4,3119.2,0.00481325]
[1763394681253,0.00256557,3119.4,3119.2,0.52463325]
[1763394681453,0.00256557,3119.4,3119.2,0.00481325]
[1763394681648,0.00481325,3119.6,3119.5,0.51978]
[1763394681858,3.2078,3120.8,3119.5,3.2078]
[1763394682046,3.2078,3121.7,3120.7,3.2078]
[1763394682556,3.2078,3121.7,3120.9,0.51954]
[1763394682754,0.00311335,3121.6,3121.0,0.00481325]
[1763394682948,0.00311335,3121.6,3121.1,3.2078]
[1763394683256,26.87666766,3123.6,3121.1,3.2078]
[1763394683257,3.2078,3122.3,3121.5,3.2078]
[1763394683556,13.67066766,3123.6,3122.1,0.51933]
[1763394683557,3.2078,3122.9,3122.1,0.51933]
[1763394683751,3.2078,3122.9,3121.9,3.2078]
[1763394684058,3.2078,3122.9,3121.9,3.72717]
[1763394684262,3.2078,3122.3,3121.1,3.2078]
[1763394684452,3.2078,3121.9,3121.1,3.2078]
[1763394684754,0.00248673,3122.3,3121.5,3.2078]
[1763394684956,0.00248673,3122.3,3121.4,3.72726]
[1763394685153,0.00248673,3122.3,3121.8,3.2078]
[1763394686662,3.21028673,3122.3,3121.8,3.2078]
[1763394686959,0.00248673,3122.3,3121.8,3.2078]
[1763394687470,0.00248673,3122.3,3121.8,3.72719]
[1763394687769,0.00248673,3122.3,3122.0,0.4465]
[1763394688056,0.00248673,3122.3,3122.2,3.2078]
[1763394688955,0.00248673,3122.3,3121.2,40.8]
[1763394688956,0.00248673,3122.3,3121.8,3.2078]
[1763394689546,0.00248673,3122.3,3121.1,0.00327726]
[1763394689547,0.00248673,3122.3,3121.4,3.2078]
[1763394689746,3.2078,3122.0,3121.4,3.2078]
[1763394689948,0.00248673,3122.3,3121.4,3.2078]
[1763394690154,0.00248673,3122.3,3121.8,3.2078]
[1763394690351,0.00248673,3122.3,3122.2,3.2078]
[1763394690551,0.00248673,3122.3,3121.8,3.2078]
[1763394690858,0.00248673,3122.3,3122.2,3.2078]
[1763394691253,0.00248673,3122.3,3121.8,3.2078]
[1763394692553,3.2078,3122.0,3121.4,3.2078]
[1763394692755,0.00248673,3122.3,3121.4,3.2078]
[1763394693150,0.00248673,3122.3,3121.8,3.2078]
[1763394693454,0.00248673,3122.3,3121.8,3.72719]
[1763394693661,0.00248673,3122.3,3121.8,3.2078]
[1763394693954,0.00248673,3122.3,3121.8,3.72718]
[1763394694156,0.00248673,3122.3,3122.2,3.72713]
[1763394694654,0.00248673,3122.3,3122.2,3.2078]
[1763394694857,3.2078,3123.4,3122.2,3.2078]
[1763394695056,3.2078,3123.4,3122.5,0.00480454]
[1763394695362,3.2078,3123.4,3122.6,3.2078]
[1763394695962,3.46,3123.0,3122.5,0.00480454]
[1763394696160,3.2078,3122.6,3121.8,3.2078]
[1763394696352,3.2078,3121.9,3121.2,3.2078]
[1763394696557,3.2078,3121.3,3120.6,3.2078]
[1763394697059,3.2078,3121.3,3120.9,0.00480454]
[1763394697256,0.00477551,3121.5,3120.9,0.00480454]
[1763394697460,3.2078,3121.3,3120.9,0.00480454]
[1763394697863,0.00477551,3121.5,3120.9,0.00480454]
[1763394698066,0.00477551,3121.5,3121.0,3.2078]
[1763394698460,0.00477551,3121.5,3121.3,0.51947]
[1763394698661,0.00477551,3121.5,3121.4,3.2078]
[1763394698864,0.00477551,3121.5,3120.9,0.00480454]
[1763394699065,3.2078,3121.3,3120.9,0.00480454]
[1763394699555,0.4695,3121.0,3120.2,3.2078]
[1763394699861,3.2078,3120.3,3118.8,3.2078]
[1763394700062,3.2078,3120.3,3119.2,3.2078]
[1763394700463,3.2078,3120.3,3119.2,3.72762]
[1763394700661,0.00480454,3120.1,3119.6,3.2078]
[1763394700867,0.00480454,3120.1,3120.0,3.2078]
[1763394701255,3.2078,3121.0,3120.0,6.8591]
[1763394701459,3.2078,3121.6,3120.4,3.2078]
[1763394701769,3.2078,3121.6,3120.0,3.6505]
[1763394702059,3.2078,3121.6,3120.8,3.2078]
[1763394702360,0.00477551,3121.5,3120.8,3.2078]
[1763394702563,0.00477551,3121.5,3121.3,3.2078]
[1763394702766,0.00477551,3121.5,3121.3,3.72727]
[1763394703260,0.00477551,3121.5,3121.3,3.2078]
[1763394703565,0.00477551,3121.5,3121.3,3.72727]
[1763394703864,0.00477551,3121.5,3121.3,3.2078]
[1763394704262,0.00477551,3121.5,3121.1,0.00480454]
[1763394704563,3.21257551,3121.5,3121.1,0.00480454]
[1763394704966,3.21257551,3121.5,3120.5,3.2078]
[1763394705163,3.21257551,3121.5,3120.9,3.2078]
[1763394705164,0.00477551,3121.5,3120.9,3.2078]
[1763394706057,0.00477551,3121.5,3120.9,3.21260454]
[1763394706257,0.00477551,3121.5,3121.3,3.72727]
[1763394706458,3.2078,3122.5,3121.3,3.2078]
[1763394706666,3.2078,3122.5,3122.0,3.2078]
[1763394706863,3.2078,3122.5,3121.6,3.2078]
[1763394707053,3.2078,3122.6,3121.6,3.2078]
[1763394707257,3.2078,3122.6,3121.6,3.72722]
[1763394707455,0.00480454,3122.4,3121.7,0.51941]
[1763394707656,0.00480454,3122.4,3121.6,3.2114026]
[1763394708056,3.2078,3121.9,3121.6,0.0036026]
[1763394708568,3.2078,3122.3,3121.6,0.0036026]
[1763394708772,3.2078,3122.3,3121.6,0.5230226]
[1763394708972,3.2078,3122.3,3121.7,3.7272]
[1763394709167,3.2078,3122.3,3121.7,3.2078]
[1763394710073,0.00480454,3122.4,3121.7,3.72721]
[1763394710279,3.2078,3122.2,3121.7,3.2078]
[1763394710566,3.2078,3121.8,3121.6,0.0036026]
[1763394710758,3.2078,3121.8,3121.2,3.2078]
[1763394711276,3.2078,3121.3,3120.9,0.00480454]
[1763394711968,0.3233,3121.0,3120.9,0.0038576]
[1763394712373,6.3233,3121.0,3119.4,3.2078]
[1763394712568,3.2078,3119.8,3119.1,1.13872679]
[1763394712770,3.2078,3119.8,3118.9,3.2078]
[1763394712967,0.00480454,3119.7,3119.1,0.51984]
[1763394713269,0.00791861,3119.7,3119.1,0.5237596]
[1763394713569,0.00791861,3119.7,3119.1,0.0039196]
[1763394713768,0.00791861,3119.7,3119.5,3.72757]
[1763394713976,3.2078,3120.4,3119.5,3.2078]
[1763394714273,3.2078,3119.9,3119.1,0.0039196]
[1763394714469,0.3233,3121.0,3119.5,3.2078]
[1763394714470,3.2078,3120.0,3119.5,3.2078]
[1763394714670,3.2078,3120.4,3119.5,3.2078]
[1763394714872,3.2078,3120.4,3119.1,4.35044639]
[1763394715071,0.00480454,3120.1,3119.7,0.51974]
[1763394715271,3.2078,3120.0,3119.4,0.51979]
[1763394715780,3.2078,3120.0,3119.1,3.2117196]
[1763394715976,3.2078,3120.0,3119.4,0.51979]
[1763394716175,3.2078,3120.0,3119.3,0.5198]
[1763394716581,3.2078,3119.6,3119.1,3.2117196]
[1763394716874,0.00480454,3120.1,3119.1,3.2117196]
[1763394716875,3.2078,3120.0,3119.1,3.2117196]
[1763394717579,0.00480454,3120.1,3119.6,3.2078]
[1763394717969,0.00480454,3120.1,3119.2,3.2078]
[1763394718178,3.2078,3120.0,3119.2,3.2078]
[1763394718975,3.2078,3120.0,3119.2,3.72763]
[1763394719276,3.2078,3120.0,3119.2,3.72761]
[1763394719477,3.2078,3120.0,3119.2,3.2078]
[1763394719683,3.2078,3119.6,3119.2,3.2078]
[1763394720180,3.2078,3119.6,3119.1,0.0039196]
[1763394720369,3.2078,3119.2,3118.0,3.2078]
[1763394720677,3.2078,3119.6,3118.5,0.51994]
[1763394720878,3.2078,3119.0,3118.0,3.2078]
[1763394721171,3.2078,3119.0,3117.6,1.7164032]
[1763394721172,3.2078,3118.6,3117.6,4.34652679]
[1763394721371,3.6258,3118.0,3117.8,0.00480454]
[1763394721571,3.6258,3118.0,3116.7,1.594]
[1763394721572,3.62838678,3118.0,3116.7,3.2078]
[1763394722080,3.2078,3117.6,3116.7,3.2078]
[1763394722279,3.2078,3117.1,3116.2,0.52032]
[1763394722575,3.2078,3116.7,3116.3,0.00481263]
[1763394723078,0.00481263,3116.8,3116.3,0.00481263]
[1763394723281,3.2078,3117.8,3116.4,3.2078]
[1763394723580,3.2078,3118.8,3117.7,3.2078]
[1763394723784,3.2078,3118.8,3118.1,3.2078]
[1763394723972,3.2078,3118.8,3118.1,3.7278]
[1763394724173,3.2078,3118.4,3117.3,3.2078]
[1763394724478,3.2078,3117.7,3117.3,3.2078]
[1763394725384,3.2078,3118.0,3117.3,3.2078]
[1763394725685,3.2078,3118.0,3117.3,3.21261263]
[1763394726092,3.2078,3117.5,3117.3,0.00481263]
[1763394726582,3.2078,3117.5,3116.4,3.2078]
[1763394726879,3.2078,3117.5,3116.8,3.2078]
[1763394727076,0.00383061,3118.4,3117.4,0.52012]
[1763394727077,3.2078,3117.8,3117.4,0.52012]
[1763394727284,3.2078,3117.8,3117.3,3.72793]
[1763394727576,3.2078,3117.8,3117.0,0.4288]
[1763394727781,3.2078,3117.8,3117.3,3.2078]
[1763394727985,0.00481263,3117.7,3117.5,0.52011]
[1763394728175,3.2078,3118.3,3118.2,0.51999]
[1763394728374,5.26272121,3121.2,3117.0,0.4288]
[1763394728375,3.2078,3119.5,3118.0,3.6366]
[1763394728574,3.2078,3119.9,3118.5,3.2078]
[1763394728786,3.2078,3119.9,3119.0,3.2078]
[1763394728983,3.2078,3119.9,3119.0,3.6366]
[1763394729181,3.2078,3119.9,3119.7,0.51973]
[1763394729381,0.00481263,3119.8,3119.7,0.00376188]
[1763394730381,0.00481263,3119.8,3119.1,0.00481263]
[1763394730685,3.2078,3119.6,3119.1,0.00481263]
[1763394731375,3.2078,3119.6,3119.1,0.00816469]
[1763394731584,0.00481263,3119.8,3119.1,0.00816469]
[1763394731784,0.00481263,3119.8,3119.4,3.2078]
[1763394731988,0.00481263,3119.8,3119.1,0.00816469]
[1763394732188,3.2078,3119.5,3119.1,0.00816469]
[1763394733987,0.00481263,3119.8,3119.1,0.00816469]
[1763394734188,0.00481263,3119.8,3119.2,3.2078]
[1763394734581,0.00481263,3119.8,3119.6,0.51974]
[1763394734881,0.00481263,3119.8,3119.6,3.72754]
[1763394735082,0.00481263,3119.8,3119.6,3.72756]
[1763394735378,0.00481263,3119.8,3119.2,3.2078]
[1763394735579,0.00481263,3119.8,3119.4,0.51979]
[1763394735883,0.00481263,3119.8,3119.3,0.51981]
[1763394736075,3.2078,3119.5,3119.1,0.00816469]
[1763394736280,0.00481263,3119.8,3119.2,3.2078]
[1763394736584,1.66975908,3121.7,3119.2,3.2078]
[1763394736585,3.2078,3120.4,3120.1,0.51967]
[1763394736881,3.2078,3121.0,3120.2,3.2078]
[1763394737184,3.2078,3121.5,3121.3,0.51946]
[1763394737384,3.2078,3121.5,3121.2,0.51949]
[1763394737575,3.21173899,3121.5,3121.2,0.00367625]
[1763394737981,3.21173899,3121.5,3120.3,0.51963]
[1763394738176,3.2078,3120.9,3120.2,3.2078]
[1763394738780,3.2078,3120.9,3120.2,3.72745]
[1763394739084,3.2078,3120.9,3120.2,3.21491599]
[1763394739484,3.2078,3120.4,3120.2,0.00711599]
[1763394739681,3.2078,3120.5,3120.2,0.00711599]
[1763394739885,3.2078,3121.0,3120.2,0.00711599]
[1763394740091,3.2078,3121.4,3120.6,0.51959]
[1763394740389,3.2078,3121.4,3120.6,3.2078]
[1763394740684,0.00393899,3121.5,3121.4,0.51946]
[1763394740989,3.2078,3122.2,3121.3,0.85297754]
[1763394741184,2.19374551,3123.4,3121.7,3.2078]
[1763394741185,3.2078,3122.8,3121.7,3.2078]
[1763394741384,3.2078,3122.8,3122.2,0.51932]
[1763394741586,3.2078,3122.8,3121.7,3.2078]
[1763394741793,0.00480437,3122.6,3122.0,0.51935]
[1763394742086,3.2078,3122.2,3121.9,0.00480437]
[1763394742494,3.2078,3122.2,3120.9,3.2078]
[1763394742787,3.2078,3122.0,3120.9,44.0078]
[1763394743189,3.2078,3122.0,3121.3,3.2078]
[1763394743688,3.2078,3122.0,3121.3,3.21260437]
[1763394745393,3.575,3122.0,3121.3,3.21260437]
[1763394746092,3.2078,3122.0,3121.3,3.21260437]
[1763394747094,3.2078,3122.0,3121.3,3.73207437]
[1763394747397,3.2078,3122.0,3121.4,0.51944]
[1763394747691,3.2078,3122.0,3121.3,3.21260437]
[1763394747894,3.2078,3122.4,3121.7,3.2078]
[1763394748298,3.2078,3122.4,3122.0,0.51936]
[1763394748593,3.2078,3122.4,3121.7,3.44317035]
[1763394748794,3.2078,3122.4,3121.9,0.51936]
[1763394749093,3.2078,3122.4,3121.7,3.2078]
[1763394749289,3.2078,3122.0,3121.3,3.21260437]
[1763394749596,3.2078,3122.0,3121.3,0.00480437]
[1763394749892,3.2078,3122.0,3120.9,3.2078]
[1763394750088,3.2078,3122.0,3121.1,0.5195]
[1763394750393,3.2078,3122.0,3120.9,3.2078]
[1763394750792,3.2078,3122.0,3121.1,0.00480437]
[1763394750998,3.2078,3122.4,3121.4,3.2078]
[1763394752302,3.2078,3121.8,3121.3,0.51947]
[1763394752608,3.2078,3121.8,3121.4,3.72726]
[1763394752991,3.2078,3121.8,3121.1,0.00480437]
[1763394753200,3.2078,3121.5,3121.1,0.00480437]
[1763394754999,0.3169,3121.2,3121.1,0.00480437]
[1763394755186,6.3169,3121.2,3120.2,3.21011162]
[1763394755393,3.2078,3121.2,3120.2,3.21011162]
[1763394755697,0.3672,3120.3,3120.2,0.00231162]
[1763394755889,0.3711112,3120.3,3120.2,0.00231162]
[1763394756094,0.3711112,3120.3,3118.7,7.37363991]
[1763394756095,0.0039112,3120.3,3119.4,0.3719]
[1763394756294,0.00480437,3120.2,3120.1,0.51968]
[1763394756490,3.2078,3121.3,3120.9,0.51953]
[1763394756693,3.2078,3121.7,3120.6,3.2078]
[1763394757602,3.2078,3121.3,3120.8,0.00480437]
[1763394757802,0.00480437,3121.5,3120.8,0.00480437]
[1763394758100,3.2078,3121.1,3120.8,0.00480437]
[1763394758297,3.21260437,3121.5,3120.8,0.00480437]
[1763394758900,3.21260437,3121.5,3121.1,0.51949]
[1763394759094,3.21260437,3121.5,3121.2,0.51948]
[1763394759295,3.21260437,3121.5,3120.8,0.00480437]
[1763394759296,0.00480437,3121.5,3120.8,0.00480437]
[1763394759498,3.2078,3121.2,3120.8,0.00480437]
[1763394759703,0.00480437,3121.5,3120.8,0.00480437]
[1763394760009,3.2078,3121.2,3120.8,0.00480437]
[1763394760308,0.00480437,3121.5,3120.8,0.00480437]
[1763394761097,3.575,3121.2,3120.8,0.00480437]
[1763394761398,3.2078,3121.2,3120.8,0.00480437]
[1763394761703,0.00480437,3121.5,3121.0,0.51952]
[1763394761909,0.00480437,3121.5,3121.4,3.2078]
[1763394762098,0.00480437,3121.5,3121.1,3.2078]
[1763394762992,0.00480437,3121.5,3120.8,0.00480437]
[1763394763192,3.575,3121.2,3120.8,0.00480437]
[1763394765396,3.575,3121.2,3119.9,4.05943991]
[1763394765709,3.575,3120.3,3119.9,3.2078]
[1763394766100,3.575,3120.8,3119.9,3.2078]
[1763394766301,3.2078,3120.2,3119.5,0.85163991]
[1763394766497,3.2078,3120.2,3119.5,0.0070886]
[1763394767304,3.2078,3119.8,3119.5,0.0070886]
[1763394767994,3.2078,3119.8,3118.6,3.2078]
[1763394768196,3.2078,3118.9,3118.2,3.2078]
[1763394768398,3.2078,3118.9,3118.2,3.72778]
[1763394768696,3.2078,3118.9,3118.2,3.2078]
[1763394769009,0.00734562,3118.9,3118.6,3.2078]
[1763394769508,0.00734562,3118.9,3118.8,0.51989]
[1763394770108,3.2078,3119.7,3118.8,6.0]
[1763394770408,3.2078,3119.7,3119.1,3.2078]
[1763394770803,3.2078,3119.2,3118.6,0.51993]
[1763394771000,0.00874854,3119.2,3118.9,3.72766]
[1763394771212,0.00874854,3119.2,3118.9,3.2078]
[1763394771403,0.00874854,3119.2,3119.1,0.51984]
[1763394771712,0.00874854,3119.2,3118.9,3.72766]
[1763394771916,0.00874854,3119.2,3118.9,3.2078]
[1763394772203,0.00874854,3119.2,3118.5,3.2078]
[1763394772409,0.00874854,3119.2,3118.5,3.72774]
[1763394772607,0.00874854,3119.2,3118.5,3.2078]
[1763394774012,0.00874854,3119.2,3118.5,3.72774]
[1763394774216,0.00874854,3119.2,3118.5,3.2078]
[1763394774710,0.00874854,3119.2,3118.7,0.5199]
[1763394774909,0.00874854,3119.2,3118.9,0.51986]
[1763394775209,0.00874854,3119.2,3119.0,0.51985]
[1763394775410,0.00874854,3119.2,3119.1,0.51984]
[1763394775711,4.854e-05,3119.2,3119.1,0.51984]
[1763394776210,3.2078,3120.1,3119.6,0.51976]
[1763394776407,3.2078,3120.1,3119.2,0.213]
[1763394776608,3.21179696,3120.1,3119.4,3.72759]
[1763394776809,3.21179696,3120.1,3119.4,3.2078]
[1763394777002,3.21179696,3120.1,3119.6,0.51976]
[1763394777312,3.21179696,3120.1,3119.5,0.51977]
[1763394777704,3.21179696,3120.1,3119.4,3.2078]
[1763394777914,3.21179696,3120.1,3119.8,0.51972]
[1763394778109,0.00399696,3120.1,3120.0,3.2078]
[1763394778513,0.00399696,3120.1,3120.0,3.72749]
[1763394778707,0.00399696,3120.1,3120.0,3.5474]
[1763394778912,0.00399696,3120.1,3120.0,3.2078]
[1763394779413,0.3714,3121.6,3120.3,0.51963]
[1763394779414,3.2078,3121.4,3120.3,0.51963]
[1763394779615,3.2078,3121.4,3120.4,3.72743]
[1763394779817,3.2078,3121.4,3120.4,3.2078]
[1763394780115,3.2078,3121.4,3120.5,0.51961]
[1763394780320,3.2078,3122.0,3120.9,3.2078]
[1763394780616,0.00480437,3121.8,3121.1,0.00480437]
[1763394780810,0.00480437,3121.8,3121.3,3.2078]
[1763394781015,3.2078,3123.2,3122.9,0.51921]
[1763394781210,2.80350299,3124.9,3121.6,1.19123991]
[1763394781211,3.2424,3123.7,3122.6,3.2078]
[1763394781416,3.2424,3123.7,3123.1,3.2078]
[1763394781612,3.2424,3123.7,3122.1,0.85775032]
[1763394781613,0.3714,3123.2,3122.6,3.2078]
[1763394781811,0.3714,3123.2,3122.1,0.51934]
[1763394781812,3.2078,3122.8,3122.1,0.51934]
[1763394782011,3.2078,3122.8,3122.2,3.2078]
[1763394782012,0.00832351,3122.8,3122.2,3.2078]
[1763394782210,0.00832351,3122.8,3122.7,3.2078]
[1763394782613,9.21612351,3122.8,3122.1,0.00836575]
[1763394782813,3.2078,3122.2,3122.1,0.00836575]
[1763394783012,0.3672,3122.1,3120.8,3.5474]
[1763394783213,0.3672,3122.1,3120.8,3.2078]
[1763394783214,3.2078,3121.5,3120.8,3.2078]
[1763394784014,3.2078,3121.5,3120.8,3.21571752]
[1763394784520,3.2078,3121.9,3121.2,3.5474]
[1763394784715,3.2078,3122.6,3121.6,3.2078]
[1763394784918,0.00832351,3122.8,3122.6,0.51925]
[1763394785113,0.0346,3123.7,3123.0,0.2595]
[1763394785320,0.0346,3123.7,3123.5,3.7269]
[1763394785709,0.0346,3123.7,3123.5,3.72691]
[1763394785918,3.2078,3125.3,3123.9,0.3396]
[1763394786124,3.2078,3125.3,3124.4,0.51896]
[1763394786125,0.00480437,3124.9,3124.4,0.51896]
[1763394786325,0.00480437,3124.9,3124.3,3.73158437]
[1763394786519,0.00480437,3124.9,3124.6,0.51892]
[1763394786825,0.00480437,3124.9,3124.8,3.5474]
[1763394787213,4.37e-06,3124.9,3124.8,6.7474]
[1763394787417,4.37e-06,3124.9,3124.8,3.2078]
[1763394787922,3.2078,3126.8,3124.9,3.1992]
[1763394788122,3.2078,3126.8,3125.5,3.2078]
[1763394788419,3.2078,3126.6,3125.6,0.51876]
[1763394788617,3.2078,3126.6,3126.1,3.2078]
[1763394788818,3.2115257,3126.6,3126.1,3.21027614]
[1763394789220,3.2115257,3126.6,3126.1,0.00247614]
[1763394790618,0.0037257,3126.6,3126.4,0.51862]
[1763394790816,3.2078,3127.7,3126.6,0.3396]
[1763394791025,3.2078,3127.7,3127.2,3.2078]
[1763394791328,3.2078,3128.3,3127.6,3.2078]
[1763394791523,3.2078,3128.9,3128.1,3.2078]
[1763394791826,0.00244774,3128.9,3128.5,3.2078]
[1763394792028,0.00244774,3128.9,3128.5,3.72896997]
[1763394792227,3.21024774,3128.9,3128.5,3.21069997]
[1763394792524,3.21024774,3128.9,3127.4,3.2078]
[1763394792725,3.4125,3128.0,3127.4,3.2078]
[1763394793125,3.2078,3128.0,3127.4,3.2078]
[1763394793525,3.5792,3128.0,3127.4,3.2078]
[1763394793725,3.5839691,3128.0,3127.4,3.21571446]
[1763394793926,3.2078,3127.5,3127.4,0.00791446]
[1763394794533,3.5839691,3128.0,3127.4,0.00791446]
[1763394795129,3.2078,3127.6,3127.4,0.00791446]
[1763394795426,3.2078,3127.6,3125.8,41.04223938]
[1763394795427,3.2078,3127.6,3126.6,3.2078]
[1763394795632,0.3761691,3128.0,3126.6,3.2078]
[1763394795633,3.2078,3127.5,3126.6,3.2078]
[1763394796221,3.5792,3127.5,3126.6,3.21032743]
[1763394796424,0.3714,3127.5,3126.7,0.00479624]
[1763394796625,3.2078,3126.8,3125.8,3.2078]
[1763394796825,0.3714,3127.5,3125.8,3.2078]
[1763394796826,3.2078,3126.3,3125.8,3.2078]
[1763394797024,3.2078,3125.9,3125.2,3.2078]
[1763394797430,3.2078,3126.3,3125.2,3.2078]
[1763394797629,0.00479624,3126.1,3125.4,0.00479624]
[1763394798227,3.2078,3125.9,3125.4,0.00479624]
[1763394799239,0.00479624,3126.1,3125.4,0.00479624]
[1763394799637,0.00479624,3126.1,3125.6,3.2078]
[1763394799837,0.00479624,3126.1,3126.0,3.2078]
[1763394800235,3.2078,3126.8,3126.0,3.2078]
[1763394800236,3.2078,3126.8,3126.3,0.51864]
[1763394800545,1.871,3128.4,3126.0,3.5269]
[1763394800546,3.2078,3127.3,3126.4,3.72642]
[1763394800734,3.2078,3127.3,3126.5,0.51861]
[1763394800940,3.2078,3127.3,3126.8,3.2078]
[1763394801235,3.2078,3127.3,3125.6,1.962]
[1763394801236,3.21162573,3127.3,3126.3,3.2078]
[1763394801642,3.2078,3126.4,3125.7,3.2078]
[1763394801838,3.2078,3126.8,3125.7,3.2078]
[1763394802037,3.2078,3126.8,3126.2,3.2078]
[1763394802530,3.2078,3127.2,3126.2,3.2078]
[1763394802736,3.2078,3126.8,3126.2,3.2078]
[1763394802937,3.2078,3127.2,3126.2,3.2078]
[1763394803332,3.2078,3126.7,3126.2,3.2078]
[1763394804238,3.2078,3126.7,3125.8,3.2078]
[1763394805342,3.2078,3126.7,3126.2,3.2078]
[1763394805543,3.2078,3126.7,3125.8,3.2078]
[1763394805940,3.2078,3126.7,3126.2,3.72645]
[1763394806139,3.2078,3127.1,3126.2,3.2078]
[1763394806333,3.2078,3127.1,3126.3,0.51865]
[1763394806639,3.2078,3127.1,3126.2,3.2078]
[1763394807040,3.2078,3127.1,3126.7,0.51858]
[1763394807237,3.2078,3127.1,3126.2,3.2078]
[1763394808339,0.00382573,3127.3,3126.2,3.2078]
[1763394808340,3.2078,3126.6,3126.2,3.2078]
[1763394809338,3.5198,3126.6,3126.2,3.2078]
[1763394809739,3.5198,3126.6,3125.8,3.2078]
[1763394810039,3.2078,3127.0,3125.8,3.2078]
[1763394810232,3.2078,3127.0,3125.4,0.00479624]
[1763394810233,3.2078,3127.0,3126.2,3.2078]
[1763394810434,3.2078,3127.0,3126.7,0.51856]
[1763394810636,3.2078,3127.0,3126.3,0.51863]
[1763394810945,3.2078,3127.0,3126.2,3.72646]
[1763394811145,3.2078,3127.0,3125.7,0.3171]
[1763394811146,3.2078,3126.6,3125.8,3.2078]